[Event "WYCC 2018 G14"]
[Site "Halkidiki"]
[Date "2018.10.28"]
[Round "9"]
[White "Kumar, Arya"]
[Black "Sim, Jia Ru"]
[Result "1-0"]
[ECO "B21"]
[WhiteElo "1619"]
[BlackElo "1979"]
[Annotator "NA"]
[PlyCount "85"]
[EventDate "2018.10.20"]
[EventType "swiss"]
[EventCountry "GRE"]
[SourceTitle "playchess.com"]
[Source "ChessBase"]
[SourceQuality "1"]
[TimeControl "40/5400+30:1800+30"]

1. e4 {[%emt 0:00:00]} c5 {[%emt 0:00:00]} 2. d4 {[%emt 0:00:00]} cxd4 {[%emt 0:00:06]} 3. c3 {[%emt 0:00:00]} dxc3 {[%emt 0:00:06]} 4. Nxc3 {[%emt 0:00:00]} Nc6 {[%emt 0:00:18]} 5. Nf3 {[%emt 0:00:04]} d6 {[%emt 0:00:07]} 6. Bc4 {[%emt 0:00:05]} e6 {[%emt 0:00:14]} 7. O-O {[%emt 0:00:07]} Nf6 {[%emt 0:00:09]} 8. Qe2 {[%emt 0:00:08]} Be7 {[%emt 0:00:07]} 9. Rd1 {[%emt 0:00:07]} e5 {[%emt 0:00:07]} 10. Be3 {[%emt 0:00:08]} O-O {[%emt 0:00:25]} 11. Rac1 {[%emt 0:00:07]} Be6 {[%emt 0:01:09]} 12. b4 {[%emt 0:00:52]} Nxb4 {[%emt 0:01:36]} 13. Nxe5 {[%emt 0:00:23]} Qa5 {[%emt 0:00:40]} 14. Nf3 {[%emt 0:01:41]} Bg4 {[%emt 0:23:46]} 15. h3 {[%emt 0:09:16]} Bxf3 {[%emt 0:00:22]} 16. Qxf3 {[%emt 0:00:15]} Rac8 {[%emt 0:00:32]} 17. Bb3 {[%emt 0:02:47]} Nc6 {[%emt 0:01:44]} 18. Nd5 {[%emt 0:11:32]} Nxd5 {[%emt 0:05:13]} 19. Bxd5 {[%emt 0:00:48]} Ne5 {[%emt 0:01:17]} 20. Qe2 {[%emt 0:01:13]} b5 {[%emt 0:08:26]} 21. f4 {[%emt 0:05:58]} Nd7 {[%emt 0:03:22]} 22. Bd4 {[%emt 0:08:21]} Rxc1 {[%emt 0:15:23]} 23. Rxc1 {[%emt 0:00:12]} Nf6 {[%emt 0:00:09]} 24. Bb3 {[%emt 0:05:37]} Qb4 {[%emt 0:09:33]} 25. Qe3 {[%emt 0:05:53]} Bd8 {[%emt 0:04:34]} 26. e5 {[%emt 0:07:59]} Re8 {[%emt 0:03:37]} 27. a3 {[%emt 0:11:21]} Qa5 {[%emt 0:01:56]} 28. Qf3 {[%emt 0:01:24]} Bb6 {[%emt 0:08:30]} 29. Bxb6 {[%emt 0:00:22]} Qxb6+ {[%emt 0:00:07]} 30. Kh1 {[%emt 0:00:36]} Nd7 {[%emt 0:00:21]} 31. Rc6 {[%emt 0:11:49]} Qa5 {[%emt 0:03:59]} 32. Qd5 {[%emt 0:01:21]} Rf8 {[%emt 0:05:55]} 33. Rxd6 {[%emt 0:01:57]} Qe1+ {[%emt 0:00:44]} 34. Kh2 {[%emt 0:00:10]} Qe3 {[%emt 0:00:51]} 35. Rxd7 {[%emt 0:01:42]} Qxf4+ {[%emt 0:00:07]} 36. g3 {[%emt 0:00:07]} Qf2+ {[%emt 0:00:25]} 37. Qg2 {[%emt 0:00:13]} Qc5 {[%emt 0:00:22]} 38. Qf3 {[%emt 0:02:21]} Kh8 {[%emt 0:00:32]} 39. Rxf7 {[%emt 0:05:04]} Rd8 {[%emt 0:00:37]} 40. Qf2 {[%emt 0:00:00]} Qxf2+ {[%emt 0:00:00]} 41. Rxf2 {[%emt 0:01:36]} a5 {[%emt 0:01:58]} 42. e6 {[%emt 0:00:10]} a4 {[%emt 0:07:39]} 43. e7 {[%emt 0:00:09]} 1-0

[Event "WYCC 2018 G14"]
[Site "Halkidiki"]
[Date "2018.10.28"]
[Round "9"]
[White "Tryggestad, Linnea Garberg"]
[Black "Somton, Anita"]
[Result "0-1"]
[ECO "D35"]
[WhiteElo "1604"]
[BlackElo "1787"]
[Annotator "NA RC"]
[PlyCount "60"]
[EventDate "2018.10.20"]
[EventType "swiss"]
[EventCountry "GRE"]
[SourceTitle "playchess.com"]
[Source "ChessBase"]
[SourceQuality "1"]
[TimeControl "40/5400+30:1800+30"]

1. d4 {[%emt 0:00:00]} d5 {[%emt 0:00:00]} 2. c4 {[%emt 0:00:00]} e6 {[%emt 0:00:13]} 3. Nc3 {[%emt 0:00:36]} Nf6 {[%emt 0:00:25]} 4. e3 {[%emt 0:00:36]} a6 {[%emt 0:00:36]} 5. Nf3 {[%emt 0:01:25]} Nbd7 {[%emt 0:00:34]} 6. Bd3 {[%emt 0:02:01]} dxc4 {[%emt 0:01:22]} 7. Bxc4 {[%emt 0:00:38]} b5 {[%emt 0:00:52]} 8. Bd3 {[%emt 0:02:01]} c5 {[%emt 0:01:03]} 9. Ne4 {[%emt 0:04:40]} Bb7 {[%emt 0:02:36]} 10. Nxf6+ {[%emt 0:06:24]} Nxf6 {[%emt 0:00:45]} 11. dxc5 {[%emt 0:01:12]} Bxc5 {[%emt 0:01:01]} 12. O-O {[%emt 0:01:34]} O-O {[%emt 0:03:23]} 13. Be2 {[%emt 0:05:47]} Qe7 {[%emt 0:02:22]} 14. a3 {[%emt 0:06:04]} Rfd8 {[%emt 0:02:03]} 15. Qe1 {[%emt 0:01:43]} Rac8 {[%emt 0:09:43]} 16. b4 {[%emt 0:02:25]} Bd6 {[%emt 0:02:37]} 17. Bb2 {[%emt 0:01:22]} Ng4 {[%emt 0:03:36]} 18. g3 {[%emt 0:06:22]} h5 {[%emt 0:03:27]} 19. h3 {[%emt 0:02:25]} Nh6 {[%emt 0:02:30]} 20. Be5 {[%emt 0:08:08]} g5 {[%emt 0:12:35]} 21. Bxd6 {[%emt 0:01:19]} Rxd6 {[%emt 0:00:25]} 22. Nh2 {[%emt 0:01:40]} g4 {[%emt 0:11:43]} 23. hxg4 {[%emt 0:05:30]} hxg4 {[%emt 0:02:07]} 24. Bxg4 {[%emt 0:09:56]} Nxg4 {[%emt 0:01:59]} 25. Nxg4 {[%emt 0:00:08]} Qg5 {[%emt 0:00:55]} 26. Nh2 {[%emt 0:03:25]} e5 {[%emt 0:01:38]} 27. Qe2 {[%emt 0:02:04]} Qh6 {[%emt 0:02:49]} 28. Qg4+ {[%emt 0:04:19]} Rg6 {[%emt 0:00:24]} 29. Qd7 {[%emt 0:00:52]} Rb8 {[%emt 0:02:16]} 30. Qc7 {[%emt 0:01:16]} Qxh2+ {[%emt 0:00:37]} 0-1

[Event "WYCC 2018 G14"]
[Site "Halkidiki"]
[Date "2018.10.28"]
[Round "9"]
[White "Alimova, Sevinch"]
[Black "Obada, Ema"]
[Result "1/2-1/2"]
[ECO "E47"]
[WhiteElo "1596"]
[BlackElo "1811"]
[Annotator "NA"]
[PlyCount "113"]
[EventDate "2018.10.20"]
[EventType "swiss"]
[EventCountry "GRE"]
[SourceTitle "playchess.com"]
[Source "ChessBase"]
[SourceQuality "1"]
[TimeControl "40/5400+30:1800+30"]

1. d4 {[%emt 0:00:00]} e6 {[%emt 0:00:00]} 2. c4 {[%emt 0:00:00]} Nf6 {[%emt 0:00:00]} 3. Nc3 {[%emt 0:00:00]} Bb4 {[%emt 0:00:00]} 4. e3 {[%emt 0:00:24]} O-O {[%emt 0:00:00]} 5. Bd3 {[%emt 0:01:11]} c5 {[%emt 0:00:47]} 6. a3 {[%emt 0:04:38]} Bxc3+ {[%emt 0:00:33]} 7. bxc3 {[%emt 0:00:16]} d6 {[%emt 0:00:21]} 8. Ne2 {[%emt 0:04:00]} Nc6 {[%emt 0:01:30]} 9. O-O {[%emt 0:01:19]} b6 {[%emt 0:03:50]} 10. e4 {[%emt 0:07:22]} e5 {[%emt 0:01:11]} 11. d5 {[%emt 0:05:43]} Na5 {[%emt 0:00:14]} 12. Ng3 {[%emt 0:03:27]} Ba6 {[%emt 0:33:28]} 13. Qe2 {[%emt 0:03:29]} Nb3 {[%emt 0:15:37]} 14. Rb1 {[%emt 0:01:44]} Nxc1 {[%emt 0:00:04]} 15. Rfxc1 {[%emt 0:04:34]} g6 {[%emt 0:02:20]} 16. Qc2 {[%emt 0:15:07]} Ne8 {[%emt 0:06:52]} 17. Rf1 {[%emt 0:02:40]} Qh4 {[%emt 0:02:12]} 18. f3 {[%emt 0:06:58]} Ng7 19. Qa4 {[%emt 0:05:36]} Bb7 {[%emt 0:05:59]} 20. Qd7 {[%emt 0:11:34]} Qg5 {[%emt 0:04:08]} 21. f4 {[%emt 0:11:51]} exf4 {[%emt 0:00:42]} 22. Ne2 {[%emt 0:00:36]} Bc8 {[%emt 0:04:44]} 23. Qxd6 {[%emt 0:01:20]} f3 {[%emt 0:00:17]} 24. Rxf3 {[%emt 0:01:11]} Bg4 {[%emt 0:00:28]} 25. Qf4 {[%emt 0:01:11]} Qh5 {[%emt 0:02:13]} 26. Ng3 {[%emt 0:01:05]} Qh4 {[%emt 0:00:07]} 27. Rf2 {[%emt 0:03:08]} f5 {[%emt 0:07:30]} 28. e5 {[%emt 0:01:03]} g5 {[%emt 0:00:16]} 29. Qd2 {[%emt 0:00:33]} f4 {[%emt 0:00:14]} 30. Ne4 {[%emt 0:00:33]} Nh5 {[%emt 0:01:24]} 31. Rbf1 {[%emt 0:00:53]} Rae8 {[%emt 0:00:58]} 32. g3 {[%emt 0:01:18]} fxg3 {[%emt 0:02:05]} 33. hxg3 {[%emt 0:00:07]} Nxg3 {[%emt 0:00:39]} 34. Rxf8+ {[%emt 0:00:30]} Rxf8 {[%emt 0:00:05]} 35. Rxf8+ {[%emt 0:00:02]} Kxf8 {[%emt 0:00:36]} 36. Qf2+ {[%emt 0:00:12]} Nf5 {[%emt 0:00:14]} 37. Qxh4 Nxh4 {[%emt 0:00:32]} 38. Nxg5 {[%emt 0:01:37]} h6 {[%emt 0:00:59]} 39. Nh7+ {[%emt 0:00:17]} Ke7 {[%emt 0:00:58]} 40. d6+ {[%emt 0:00:00]} Kf7 {[%emt 0:00:00]} 41. Be4 {[%emt 0:06:23]} Bf3 {[%emt 0:04:49]} 42. Bd3 {[%emt 0:08:04]} Bc6 {[%emt 0:00:14]} 43. Kf2 {[%emt 0:00:43]} Nf3 {[%emt 0:06:44]} 44. d7 {[%emt 0:03:59]} Ke7 {[%emt 0:00:05]} 45. e6 {[%emt 0:00:41]} Ne5 {[%emt 0:00:39]} 46. Be2 {[%emt 0:01:08]} Be4 {[%emt 0:02:01]} 47. Nf6 {[%emt 0:01:56]} Bf5 {[%emt 0:00:21]} 48. Nd5+ {[%emt 0:07:28]} Kd8 {[%emt 0:00:07]} 49. Nf4 {[%emt 0:00:26]} Nc6 {[%emt 0:01:14]} 50. Bf3 {[%emt 0:00:52]} Ne5 {[%emt 0:02:27]} 51. Bd5 {[%emt 0:01:22]} Ke7 {[%emt 0:05:03]} 52. Kg3 {[%emt 0:01:12]} Kd8 {[%emt 0:04:16]} 53. Nh5 {[%emt 0:00:29]} Ng6 {[%emt 0:01:24]} 54. Nf6 {[%emt 0:01:14]} Nf8 {[%emt 0:00:49]} 55. e7+ {[%emt 0:02:49]} Kxe7 {[%emt 0:00:04]} 56. Ng8+ {[%emt 0:00:11]} Kxd7 {[%emt 0:00:34]} 57. Nxh6 {[%emt 0:00:05]} 1/2-1/2

[Event "WYCC 2018 G14"]
[Site "Halkidiki"]
[Date "2018.10.29"]
[Round "10"]
[White "Divya Deshmukh"]
[Black "Lehaci, Miruna-Daria"]
[Result "1-0"]
[ECO "C11"]
[WhiteElo "2180"]
[BlackElo "1933"]
[Annotator "NA"]
[PlyCount "127"]
[EventDate "2018.10.20"]
[EventType "swiss"]
[EventCountry "GRE"]
[SourceTitle "playchess.com"]
[Source "ChessBase"]
[SourceQuality "1"]
[TimeControl "40/5400+30:1800+30"]

1. e4 {[%emt 0:00:00]} e6 {[%emt 0:00:00]} 2. Nf3 {[%emt 0:00:00]} d5 {[%emt 0:00:00]} 3. Nc3 {[%emt 0:00:00]} Nf6 {[%emt 0:00:00]} 4. e5 {[%emt 0:00:00]} Nfd7 {[%emt 0:00:00]} 5. d4 {[%emt 0:00:00]} c5 {[%emt 0:00:00]} 6. dxc5 {[%emt 0:00:00]} Bxc5 {[%emt 0:00:00]} 7. Bd3 {[%emt 0:00:04]} Nc6 {[%emt 0:00:00]} 8. Bf4 {[%emt 0:00:03] LiveBook: 526 Games} f6 {[%emt 0:00:10]} 9. exf6 {[%emt 0:13:04]} Qxf6 {[%emt 0:00:06]} 10. Bg3 {[%emt 0:08:51]} O-O {[%emt 0:01:24]} 11. O-O {[%emt 0:00:22]} Nd4 {[%emt 0:00:28]} 12. Be2 {[%emt 0:06:37]} Kh8 {[%emt 0:11:29]} 13. Kh1 {[%emt 0:03:58]} b6 {[%emt 0:07:56]} 14. Bh4 {[%emt 0:05:00]} Qf4 {[%emt 0:10:52]} 15. Bg5 $11 {[%emt 0:03:29]} Qf5 {[%emt 0:00:49]} 16. Nxd4 {[%emt 0:06:30]} Bxd4 {[%emt 0:00:08]} 17. Be7 {[%emt 0:00:14]} Bc5 {[%emt 0:16:01]} 18. Bd3 {[%emt 0:04:24]} Qf7 {[%emt 0:00:30]} 19. Bxf8 {[%emt 0:00:07]} Bxf8 {[%emt 0:00:20]} 20. f4 {[%emt 0:01:01]} g6 {[%emt 0:00:59]} 21. Qe2 {[%emt 0:04:23]} Nc5 {[%emt 0:04:20]} 22. b4 {[%emt 0:01:43]} Nxd3 {[%emt 0:02:28]} 23. Qxd3 {[%emt 0:00:11]} Bg7 {[%emt 0:01:34]} 24. Rae1 {[%emt 0:00:19]} Bd7 {[%emt 0:09:57]} 25. Nb5 {[%emt 0:04:04]} a5 {[%emt 0:02:28]} 26. a3 {[%emt 0:03:00]} Qf6 {[%emt 0:06:36]} 27. c3 {[%emt 0:04:25]} Qf5 {[%emt 0:02:09]} 28. Qxf5 {[%emt 0:04:24]} gxf5 {[%emt 0:00:22]} 29. Nd4 {[%emt 0:00:03]} Kg8 {[%emt 0:03:39]} 30. Rb1 {[%emt 0:08:25]} a4 {[%emt 0:02:05]} 31. g3 {[%emt 0:01:41]} Rc8 {[%emt 0:00:52]} 32. Rbc1 {[%emt 0:00:08]} Kf7 {[%emt 0:00:47]} 33. Kg2 {[%emt 0:00:10]} h6 {[%emt 0:00:42]} 34. Kf3 {[%emt 0:00:17]} Rc4 {[%emt 0:00:28]} 35. Ke3 {[%emt 0:01:47]} h5 {[%emt 0:00:32]} 36. Kd3 {[%emt 0:00:54]} Bc8 {[%emt 0:01:50]} 37. Rb1 {[%emt 0:00:43]} Bd7 {[%emt 0:03:42]} 38. b5 {[%emt 0:06:51]} Bf8 {[%emt 0:03:03]} 39. Ra1 {[%emt 0:00:10]} Bd6 {[%emt 0:01:51]} 40. Rfb1 {[%emt 0:00:00]} Rc8 {[%emt 0:00:00]} 41. Ra2 {[%emt 0:09:10]} Kf6 {[%emt 0:06:17]} 42. Nf3 {[%emt 0:02:52]} Rc5 {[%emt 0:02:10]} 43. Rab2 {[%emt 0:01:54]} Rc4 {[%emt 0:03:13]} 44. Ne5 {[%emt 0:01:31]} Bxe5 {[%emt 0:01:49]} 45. fxe5+ {[%emt 0:00:04]} Kxe5 {[%emt 0:00:04]} 46. Rb4 {[%emt 0:00:39]} Rxb4 {[%emt 0:03:46]} 47. Rxb4 {[%emt 0:00:08]} Kd6 {[%emt 0:00:04]} 48. Kd2 {[%emt 0:00:28]} Kc5 {[%emt 0:00:57]} 49. Rxa4 {[%emt 0:00:06]} Bxb5 {[%emt 0:00:30]} 50. Ra8 {[%emt 0:00:05]} Bc6 {[%emt 0:04:16]} 51. Rh8 {[%emt 0:00:33]} d4 {[%emt 0:00:05]} 52. Rxh5 {[%emt 0:00:58]} dxc3+ {[%emt 0:00:36]} 53. Kxc3 {[%emt 0:00:03]} Kd5 {[%emt 0:00:05]} 54. Kd3 {[%emt 0:00:15]} Ke5 {[%emt 0:00:07]} 55. Ke3 {[%emt 0:00:27]} b5 {[%emt 0:00:30]} 56. g4 {[%emt 0:01:38]} Be8 {[%emt 0:00:28]} 57. Rh8 {[%emt 0:02:53]} f4+ {[%emt 0:00:04]} 58. Kf2 {[%emt 0:00:03]} Bg6 {[%emt 0:00:06]} 59. h4 {[%emt 0:00:16]} Be4 {[%emt 0:00:06]} 60. Rf8 {[%emt 0:00:04]} Bc2 {[%emt 0:00:52]} 61. h5 {[%emt 0:00:24]} Bh7 {[%emt 0:01:31]} 62. h6 {[%emt 0:00:43]} Ke4 {[%emt 0:00:06]} 63. Rf7 {[%emt 0:00:04]} e5 {[%emt 0:00:36]} 64. Rxh7 {[%emt 0:00:06]} 1-0

[Event "WYCC 2018 G14"]
[Site "Halkidiki"]
[Date "2018.10.29"]
[Round "10"]
[White "Song, Yuxin"]
[Black "Kamalidenova, Meruert"]
[Result "1-0"]
[ECO "C75"]
[WhiteElo "2178"]
[BlackElo "1999"]
[Annotator "NA"]
[PlyCount "97"]
[EventDate "2018.10.20"]
[EventType "swiss"]
[EventCountry "GRE"]
[SourceTitle "playchess.com"]
[Source "ChessBase"]
[SourceQuality "1"]
[TimeControl "40/5400+30:1800+30"]

1. e4 e5 2. Nf3 Nc6 3. Bb5 a6 4. Ba4 d6 5. c3 Bd7 6. O-O g6 7. d4 Bg7 8. dxe5 dxe5 9. Bg5 Nge7 10. Qd2 {C76: Ruy Lopez: Deferred Steinitz: 5 c3 Bd7 6 d4 g6} (10. Nbd2 h6 11. Bh4 g5 12. Bg3 Ng6 13. Ne1 Qf6 14. Nd3 Rd8 15. f3 O-O 16. Qc2 Nf4 17. Nxf4 exf4 18. Bf2 {0-1 (43) Sivuk,V (2554)-Demchenko,A (2583) Moscow 2016}) 10... h6 11. Be3 Bg4 12. Qe2 O-O 13. Rd1 Qc8 14. h3 Be6 15. Nbd2 b6 16. Nf1 $146 ({Predecessor:} 16. Bb3 f5 17. Bxe6+ Qxe6 18. exf5 gxf5 {½-½ (26) Boguszlavszkij,J (2320)-Veroci,Z (2305) Hungary 1995}) 16... Nd8 17. Ng3 c5 18. Qd2 Kh7 19. b4 Nb7 20. Bd7 Bxd7 21. Qxd7 $16 Nc6 22. Rab1 Nb8 23. Qd5 Nc6 24. bxc5 bxc5 25. Nd2 Qc7 26. Nb3 Nca5 27. Nxa5 Nxa5 28. Bxc5 Rad8 29. Bd6 Qxc3 30. Rbc1 Qb2 31. Rb1 Qc2 32. Rdc1 Qa4 33. Rc5 Rxd6 34. Qxd6 Qxa2 35. Qb6 Nc4 36. Qb3 Qxb3 37. Rxb3 Nd6 38. Rb6 Nb5 39. Rxa6 Nd4 40. Ra7 Bf6 41. Rcc7 Kg8 42. Rd7 Bg5 43. Nf1 h5 44. g3 h4 45. Kg2 hxg3 46. fxg3 Bh6 47. Nh2 Be3 48. Ng4 Bd2 49. Nxe5 1-0

[Event "WYCC 2018 G14"]
[Site "Halkidiki"]
[Date "2018.10.29"]
[Round "10"]
[White "Allahverdiyeva, Ayan"]
[Black "Ehsani, Yassamin"]
[Result "1-0"]
[ECO "B43"]
[WhiteElo "2116"]
[BlackElo "1875"]
[Annotator "NA"]
[PlyCount "60"]
[EventDate "2018.10.20"]
[EventType "swiss"]
[EventCountry "GRE"]
[SourceTitle "playchess.com"]
[Source "ChessBase"]
[SourceQuality "1"]
[TimeControl "40/5400+30:1800+30"]

1. e4 {[%emt 0:00:48]} c5 {[%emt 0:00:00]} 2. Nf3 {[%emt 0:00:03]} e6 {[%emt 0:00:00]} 3. d4 {[%emt 0:00:03]} cxd4 {[%emt 0:00:00]} 4. Nxd4 {[%emt 0:00:03]} a6 {[%emt 0:00:03]} 5. Nc3 {[%emt 0:00:04]} Qc7 {[%emt 0:00:33]} 6. g3 {[%emt 0:00:34]} Bb4 {[%emt 0:00:22]} 7. Bd2 {[%emt 0:00:06]} Nc6 {[%emt 0:00:52] B43: Sicilian: Kan Variation: 5 Nc3} 8. Nb3 {[%emt 0:00:24]} Be7 {[%emt 0:02:28]} 9. Bg2 {[%emt 0:00:24]} d6 {[%emt 0:00:59]} 10. O-O {[%emt 0:00:33]} Nf6 {[%emt 0:00:29]} 11. f4 {[%emt 0:00:45]} O-O {[%emt 0:01:03]} 12. Kh1 {[%emt 0:00:34]} (12. Be3 b5 13. a3 Bb7 14. g4 Rfe8 15. g5 Nd7 16. Qh5 g6 17. Qh4 b4 18. Ne2 bxa3 19. bxa3 Na5 20. Nxa5 Qxa5 21. Rf3 Rac8 {0-1 (55) Guseinov,G (2634)-Gajewski,G (2654) Berlin 2015}) 12... Rd8 $146 {[%emt 0:01:23]} ({Predecessor:} 12... b5 13. a3 Bb7 14. Qe2 Nd7 15. Be3 Bf6 16. Bd2 {0-1 (59) Feyzullayeva,S (1494)-Kovacs,J (1859) Batumi 2014}) 13. g4 {[%emt 0:09:09]} b5 {[%emt 0:05:26]} 14. g5 {[%emt 0:00:42]} Nd7 {[%emt 0:01:33]} 15. Qh5 {[%emt 0:09:01]} g6 {[%emt 0:06:02]} 16. Qh6 {[%emt 0:00:35]} Bf8 {[%emt 0:01:06]} 17. Qh4 {[%emt 0:00:36]} Bg7 {[%emt 0:01:40]} 18. a3 {[%emt 0:00:42]} Bb7 {[%emt 0:06:42]} 19. Rae1 {[%emt 0:02:03]} Ne7 $11 {[%emt 0:12:03]} 20. Re2 {[%emt 0:02:36]} Nf8 {[%emt 0:06:48]} 21. Na5 {[%emt 0:15:12]} Bc8 {[%emt 0:05:03]} 22. Qe1 {[%emt 0:01:43]} d5 {[%emt 0:09:45]} 23. f5 {[%emt 0:03:22]} d4 {[%emt 0:07:28]} 24. f6 {[%emt 0:09:24]} dxc3 {[%emt 0:04:54]} 25. Bxc3 {[%emt 0:01:01]} Nd7 {[%emt 0:07:59]} 26. fxe7 {[%emt 0:00:56]} Re8 {[%emt 0:00:33]} 27. e5 {[%emt 0:00:20]} Rb8 {[%emt 0:05:28]} 28. Qf2 {[%emt 0:01:38]} Rxe7 {[%emt 0:01:47]} 29. Nc6 {[%emt 0:00:04]} Nb6 {[%emt 0:02:17]} 30. Ba5 {[%emt 0:00:21]} Kf8 1-0

[Event "WYCC 2018 G14"]
[Site "Halkidiki"]
[Date "2018.10.29"]
[Round "10"]
[White "Garifullina, Leya"]
[Black "Zhu, Evelyn"]
[Result "1/2-1/2"]
[ECO "B42"]
[WhiteElo "2106"]
[BlackElo "1926"]
[Annotator "NA"]
[PlyCount "85"]
[EventDate "2018.10.20"]
[EventType "swiss"]
[EventCountry "GRE"]
[SourceTitle "playchess.com"]
[Source "ChessBase"]
[SourceQuality "1"]
[TimeControl "40/5400+30:1800+30"]

1. e4 {[%emt 0:00:00]} c5 {[%emt 0:00:00]} 2. Nf3 {[%emt 0:00:00]} e6 {[%emt 0:00:00]} 3. d4 {[%emt 0:00:00]} cxd4 {[%emt 0:00:00]} 4. Nxd4 {[%emt 0:00:06]} a6 {[%emt 0:00:00] LiveBook: 25605 Games} 5. Bd3 {[%emt 0:00:07]} Bc5 {[%emt 0:00:00]} 6. Nb3 {[%emt 0:00:08]} Be7 {[%emt 0:00:01]} 7. Qg4 {[%emt 0:00:04]} g6 {[%emt 0:00:06]} 8. Qe2 {[%emt 0:00:05]} d6 {[%emt 0:00:22] B42: Sicilian: Kan Variation: 5 Bd3} 9. O-O {[%emt 0:00:13]} (9. a4 Nc6 10. O-O Ne5 11. Kh1 Nf6 12. Nc3 Bd7 13. f4 Nxd3 14. cxd3 O-O 15. Be3 b5 16. a5 {1-0 (48) Aronian,L (2764)-Caruana,F (2816) Paris 2018}) 9... Nd7 {[%emt 0:00:33]} 10. a4 {[%emt 0:00:17]} b6 {[%emt 0:10:27]} 11. Na3 {[%emt 0:01:35]} Bb7 {[%emt 0:02:29]} 12. Nc4 {[%emt 0:01:41]} Qc7 {[%emt 0:03:42]} 13. a5 {[%emt 0:04:12]} b5 {[%emt 0:02:39]} 14. Nb6 {[%emt 0:00:39]} Nxb6 {[%emt 0:04:56]} 15. axb6 {[%emt 0:00:08]} Qxb6 {[%emt 0:01:44]} 16. Na5 {[%emt 0:00:11]} Bc8 $146 {[%emt 0:12:04]} 17. c4 {[%emt 0:10:15]} b4 {[%emt 0:07:30]} 18. Be3 {[%emt 0:06:52]} Qc7 {[%emt 0:02:52]} 19. e5 {[%emt 0:03:28]} Bd7 {[%emt 0:09:19]} 20. Bd4 {[%emt 0:01:23]} f6 {[%emt 0:02:30]} 21. exf6 {[%emt 0:00:31]} Nxf6 {[%emt 0:00:57]} 22. Bxf6 {[%emt 0:00:21]} Bxf6 {[%emt 0:00:07]} 23. Qf3 {[%emt 0:02:53]} O-O {[%emt 0:02:19]} 24. Qe2 $17 {[%emt 0:01:43]} Bd4 {[%emt 0:10:54]} 25. Kh1 {[%emt 0:00:40]} Bb6 {[%emt 0:02:50]} 26. Nb3 {[%emt 0:00:40]} a5 {[%emt 0:01:43]} 27. Nd2 {[%emt 0:01:48]} Rae8 {[%emt 0:08:38]} 28. Ne4 {[%emt 0:02:41]} Bc6 {[%emt 0:02:16]} 29. Ng5 {[%emt 0:02:16]} Qe7 {[%emt 0:02:48]} 30. f4 {[%emt 0:02:53]} e5 {[%emt 0:07:07]} 31. c5 {[%emt 0:03:58]} Bxc5 {[%emt 0:02:09]} 32. Bc4+ {[%emt 0:02:14]} d5 {[%emt 0:00:47]} 33. Bb5 {[%emt 0:00:19]} Bxb5 {[%emt 0:01:19]} 34. Qxb5 {[%emt 0:00:05]} Rxf4 {[%emt 0:01:00]} 35. Rxf4 {[%emt 0:00:25]} exf4 {[%emt 0:00:01]} 36. Nf3 {[%emt 0:00:11]} Qe3 {[%emt 0:01:07]} 37. Qc6 {[%emt 0:00:43]} Rd8 {[%emt 0:00:32]} 38. Re1 {[%emt 0:00:42]} Qf2 {[%emt 0:00:21]} 39. Qe6+ {[%emt 0:06:47]} Kg7 {[%emt 0:00:15]} 40. Qe5+ {[%emt 0:00:00]} Kg8 {[%emt 0:00:00]} 41. Qe6+ {[%emt 0:50:39]} Kg7 {[%emt 0:00:25]} 42. Qe5+ {[%emt 0:13:00]} Kg8 {[%emt 0:00:05]} 43. Qe6+ {[%emt 0:06:18]} 1/2-1/2

[Event "WYCC 2018 G14"]
[Site "Halkidiki"]
[Date "2018.10.29"]
[Round "10"]
[White "Wen, Yili"]
[Black "Stepanyan, Eva"]
[Result "0-1"]
[ECO "A09"]
[WhiteElo "2083"]
[BlackElo "1981"]
[Annotator "NA RC"]
[PlyCount "136"]
[EventDate "2018.10.20"]
[EventType "swiss"]
[EventCountry "GRE"]
[SourceTitle "playchess.com"]
[Source "ChessBase"]
[SourceQuality "1"]
[TimeControl "40/5400+30:1800+30"]

1. Nf3 d5 2. c4 d4 3. e3 Nc6 4. d3 e5 5. a3 {LiveBook: 12 Games} a5 6. Be2 Nf6 7. O-O $15 Be7 8. Re1 O-O 9. b3 h6 10. Nbd2 Bf5 11. exd4 exd4 12. Nf1 Qd7 13. Ng3 Bh7 14. Rb1 Rfe8 15. Qd2 Bf8 16. Bb2 Rad8 17. Bf1 Bc5 18. Qf4 Rxe1 19. Rxe1 Qd6 20. Qc1 Rd7 21. Qa1 Kf8 22. h3 b6 23. Rd1 Rd8 24. Ne2 Nh5 25. b4 axb4 26. axb4 Nxb4 27. Nexd4 Bxd4 28. Nxd4 c5 29. Nb5 Qg6 30. d4 Nf4 31. Kh2 Nc2 32. Qa7 cxd4 33. Nxd4 Re8 34. Nxc2 Qxc2 35. Ba3+ Kg8 36. Qd7 Qe4 37. Rd4 Qe6 38. Qb5 Ra8 39. Bb4 Ne2 40. Rd6 Qe4 41. Qxb6 Bg6 42. Bxe2 Qe5+ 43. Kg1 Qxe2 44. Qd4 Qc2 45. Bc3 f6 46. c5 Ra4 47. Qd5+ Kh7 48. Bd2 Be4 49. Qh5 Qb1+ 50. Kh2 Ra1 51. f3 Qh1+ 52. Kg3 Rg1 53. fxe4 Rxg2+ 54. Kf4 Qf1+ 55. Qf3 Rf2 56. Rd3 g5+ 57. Kg4 h5+ 58. Kxh5 Rxf3 59. Rd7+ Kg8 60. Kg6 Kf8 61. c6 Qc4 62. Bb4+ Qxb4 63. Rd8+ Ke7 64. c7 Qxe4+ 65. Kg7 Rc3 66. c8=Q Rxc8 67. Rxc8 Qe6 68. Rc3 f5 0-1